[Event "*** SCC Grand Prix: Titled Tuesday Blitz"]
[Site "Chess.com"]
[Date "2020.06.23"]
[Round "5"]
[White "Susal_De_Silva"]
[Black "m_ezat"]
[Result "0-1"]
[WhiteElo "2385"]
[BlackElo "2551"]
[TimeControl "180+1"]
[EndTime "10:56:58 PDT"]
[Termination "m_ezat won on time"]

1. e4 {[%clk 0:03:00.9]} 1... c6 {[%clk 0:02:59]} 2. d4 {[%clk 0:03:00.3]} 2...
d5 {[%clk 0:02:58.5]} 3. Nc3 {[%clk 0:03:00.9]} 3... dxe4 {[%clk 0:02:57.4]} 4.
Nxe4 {[%clk 0:03:01.5]} 4... Nd7 {[%clk 0:02:57.6]} 5. Ng5 {[%clk 0:02:58.7]}
5... Ngf6 {[%clk 0:02:55.7]} 6. N1f3 {[%clk 0:02:50.7]} 6... e6 {[%clk
0:02:54.8]} 7. Bd3 {[%clk 0:02:49.5]} 7... Bd6 {[%clk 0:02:54.8]} 8. c4 {[%clk
0:02:42.1]} 8... h6 {[%clk 0:02:52.7]} 9. Nh3 {[%clk 0:02:40.3]} 9... g5 {[%clk
0:02:51.7]} 10. Nhg1 {[%clk 0:02:26.9]} 10... c5 {[%clk 0:02:45.3]} 11. Be3
{[%clk 0:02:03.9]} 11... Qc7 {[%clk 0:02:41.9]} 12. Ne2 {[%clk 0:01:58.5]} 12...
b6 {[%clk 0:02:41.3]} 13. Qc2 {[%clk 0:01:52.2]} 13... Bb7 {[%clk 0:02:40.4]}
14. O-O-O {[%clk 0:01:44.1]} 14... O-O-O {[%clk 0:02:37.5]} 15. h3 {[%clk
0:01:41.7]} 15... Kb8 {[%clk 0:02:34.3]} 16. Nc3 {[%clk 0:01:40.1]} 16... a6
{[%clk 0:02:33.2]} 17. Kb1 {[%clk 0:01:22.8]} 17... Bf4 {[%clk 0:02:16.6]} 18.
Bxf4 {[%clk 0:01:21.3]} 18... Qxf4 {[%clk 0:02:15.4]} 19. Ne2 {[%clk 0:01:20.3]}
19... Qc7 {[%clk 0:02:13.3]} 20. Ng3 {[%clk 0:01:10]} 20... cxd4 {[%clk
0:02:11.6]} 21. Nxd4 {[%clk 0:01:04]} 21... Nc5 {[%clk 0:02:02.7]} 22. Nf3
{[%clk 0:00:51.5]} 22... h5 {[%clk 0:01:26.9]} 23. Nxg5 {[%clk 0:00:29.5]} 23...
Bxg2 {[%clk 0:01:24.5]} 24. Rhg1 {[%clk 0:00:27.6]} 24... Bb7 {[%clk 0:01:23.8]}
25. h4 {[%clk 0:00:24.9]} 25... Rd4 {[%clk 0:01:09.7]} 26. b3 {[%clk 0:00:12.9]}
26... Rxh4 {[%clk 0:00:58.3]} 27. Be2 {[%clk 0:00:12.4]} 27... Rf4 {[%clk
0:00:57.2]} 28. Nh3 {[%clk 0:00:09.1]} 28... Re4 {[%clk 0:00:44.8]} 29. Bf3
{[%clk 0:00:06.4]} 29... Re5 {[%clk 0:00:36.2]} 30. Bxb7 {[%clk 0:00:06.3]}
30... Qxb7 {[%clk 0:00:36.4]} 31. f4 {[%clk 0:00:06.5]} 31... Re3 {[%clk
0:00:35.3]} 32. Qf2 {[%clk 0:00:03.2]} 32... Qf3 {[%clk 0:00:31.8]} 33. Qxf3
{[%clk 0:00:03.1]} 33... Rxf3 {[%clk 0:00:31.7]} 34. Ng5 {[%clk 0:00:03.9]}
34... Rxf4 {[%clk 0:00:27.6]} 35. Nxf7 {[%clk 0:00:03.6]} 35... Rf8 {[%clk
0:00:26.8]} 36. Ng5 {[%clk 0:00:03.1]} 36... h4 {[%clk 0:00:24.9]} 37. Ne2
{[%clk 0:00:02.4]} 37... Rf2 {[%clk 0:00:24.9]} 38. Nd4 {[%clk 0:00:02.2]} 38...
Nfe4 {[%clk 0:00:23.9]} 39. Nxe4 {[%clk 0:00:01.8]} 39... Nxe4 {[%clk
0:00:22.5]} 40. Rd3 {[%clk 0:00:01.6]} 40... Rd8 {[%clk 0:00:18.4]} 0-1

[Event "*** SCC Grand Prix: Titled Tuesday Blitz"]
[Site "Chess.com"]
[Date "2020.06.23"]
[Round "5"]
[White "Muracle"]
[Black "kleopl"]
[Result "1-0"]
[WhiteElo "2608"]
[BlackElo "2405"]
[TimeControl "180+1"]
[EndTime "10:56:59 PDT"]
[Termination "Muracle won by checkmate"]

1. d4 {[%clk 0:03:00.9]} 1... Nf6 {[%clk 0:02:59.3]} 2. c4 {[%clk 0:03:00.6]}
2... g6 {[%clk 0:02:59.5]} 3. Nc3 {[%clk 0:03:00.5]} 3... d5 {[%clk 0:02:59.8]}
4. cxd5 {[%clk 0:03:00.6]} 4... Nxd5 {[%clk 0:03:00.7]} 5. e4 {[%clk 0:03:01.2]}
5... Nxc3 {[%clk 0:03:00.9]} 6. bxc3 {[%clk 0:03:02.1]} 6... c5 {[%clk 0:03:01]}
7. Bc4 {[%clk 0:03:00]} 7... Bg7 {[%clk 0:03:00.8]} 8. Ne2 {[%clk 0:02:59.9]}
8... Nc6 {[%clk 0:02:57.8]} 9. Be3 {[%clk 0:02:59.4]} 9... O-O {[%clk
0:02:54.5]} 10. O-O {[%clk 0:02:58.3]} 10... b6 {[%clk 0:02:44.7]} 11. Qd2
{[%clk 0:02:56.5]} 11... Re8 {[%clk 0:02:41.4]} 12. Rfd1 {[%clk 0:02:55.3]}
12... Qc7 {[%clk 0:02:40.2]} 13. Rac1 {[%clk 0:02:52.4]} 13... Na5 {[%clk
0:02:32.8]} 14. Bd3 {[%clk 0:02:50.4]} 14... e5 {[%clk 0:02:28.9]} 15. d5 {[%clk
0:02:47.9]} 15... Nb7 {[%clk 0:02:27.2]} 16. Bb5 {[%clk 0:02:44]} 16... Rd8
{[%clk 0:02:21.1]} 17. Bc6 {[%clk 0:02:24.7]} 17... Rb8 {[%clk 0:02:05.2]} 18.
Bxb7 {[%clk 0:02:19.3]} 18... Bxb7 {[%clk 0:02:06.1]} 19. c4 {[%clk 0:02:14.2]}
19... Bc8 {[%clk 0:01:58.5]} 20. Nc3 {[%clk 0:02:09.1]} 20... Bd7 {[%clk
0:01:56.7]} 21. h4 {[%clk 0:02:01.1]} 21... f5 {[%clk 0:01:52.9]} 22. Bg5 {[%clk
0:01:58]} 22... Rf8 {[%clk 0:01:50.1]} 23. d6 {[%clk 0:01:57.2]} 23... Qb7
{[%clk 0:01:45.5]} 24. exf5 {[%clk 0:01:45.6]} 24... gxf5 {[%clk 0:01:43.9]} 25.
Bh6 {[%clk 0:01:39.1]} 25... f4 {[%clk 0:01:35]} 26. Bxg7 {[%clk 0:01:38.5]}
26... Kxg7 {[%clk 0:01:35.9]} 27. f3 {[%clk 0:01:34.1]} 27... Rbe8 {[%clk
0:01:34.3]} 28. Re1 {[%clk 0:01:18.6]} 28... Re6 {[%clk 0:01:31.4]} 29. Rcd1
{[%clk 0:01:15.4]} 29... Kh8 {[%clk 0:01:26.3]} 30. Ne4 {[%clk 0:01:10.6]} 30...
h6 {[%clk 0:01:23.5]} 31. Nf2 {[%clk 0:01:04.3]} 31... Rg6 {[%clk 0:00:57.1]}
32. Qc3 {[%clk 0:00:52.4]} 32... Rfg8 {[%clk 0:00:44.3]} 33. Qxe5+ {[%clk
0:00:47.1]} 33... Kh7 {[%clk 0:00:44.3]} 34. Ng4 {[%clk 0:00:34.7]} 34... Bxg4
{[%clk 0:00:42.2]} 35. fxg4 {[%clk 0:00:34.4]} 35... Rxg4 {[%clk 0:00:41.3]} 36.
Qe7+ {[%clk 0:00:27.6]} 36... Qxe7 {[%clk 0:00:39.6]} 37. Rxe7+ {[%clk 0:00:27]}
37... Kh8 {[%clk 0:00:37.3]} 38. Rd2 {[%clk 0:00:24]} 38... f3 {[%clk 0:00:37]}
39. d7 {[%clk 0:00:21.9]} 39... f2+ {[%clk 0:00:17.4]} 40. Rxf2 {[%clk
0:00:14.1]} 40... Rd4 {[%clk 0:00:17.3]} 41. Rff7 {[%clk 0:00:13.2]} 41... Rd2
{[%clk 0:00:11.4]} 42. Rh7# {[%clk 0:00:12.2]} 1-0

[Event "*** SCC Grand Prix: Titled Tuesday Blitz"]
[Site "Chess.com"]
[Date "2020.06.23"]
[Round "5"]
[White "Salem-AR"]
[Black "justantan"]
[Result "1-0"]
[WhiteElo "2929"]
[BlackElo "2780"]
[TimeControl "180+1"]
[EndTime "10:57:00 PDT"]
[Termination "Salem-AR won by checkmate"]

1. d4 {[%clk 0:03:00.9]} 1... Nf6 {[%clk 0:02:54.2]} 2. c4 {[%clk 0:02:57.9]}
2... e6 {[%clk 0:02:54.6]} 3. Nf3 {[%clk 0:02:58.1]} 3... d5 {[%clk 0:02:54.4]}
4. g3 {[%clk 0:02:58.7]} 4... Be7 {[%clk 0:02:53.6]} 5. Bg2 {[%clk 0:02:58.9]}
5... O-O {[%clk 0:02:54.2]} 6. O-O {[%clk 0:02:59.7]} 6... dxc4 {[%clk
0:02:54.7]} 7. Qc2 {[%clk 0:03:00.3]} 7... a6 {[%clk 0:02:54.2]} 8. a4 {[%clk
0:03:00.4]} 8... Bd7 {[%clk 0:02:54.1]} 9. Qxc4 {[%clk 0:03:01.1]} 9... Bc6
{[%clk 0:02:53]} 10. Bf4 {[%clk 0:03:01.6]} 10... Bd6 {[%clk 0:02:50.8]} 11. Qc1
{[%clk 0:03:01.1]} 11... a5 {[%clk 0:02:48.6]} 12. Nc3 {[%clk 0:02:58.9]} 12...
Na6 {[%clk 0:02:46.8]} 13. Bd2 {[%clk 0:02:57.6]} 13... Nb4 {[%clk 0:02:45.7]}
14. Qb1 {[%clk 0:02:57]} 14... Be7 {[%clk 0:02:42.6]} 15. e4 {[%clk 0:02:56.1]}
15... b6 {[%clk 0:02:30.9]} 16. Rd1 {[%clk 0:02:47.6]} 16... Bb7 {[%clk
0:02:30.4]} 17. Bf4 {[%clk 0:02:45.9]} 17... Nh5 {[%clk 0:02:26]} 18. Be3 {[%clk
0:02:45]} 18... Nf6 {[%clk 0:02:25.6]} 19. h3 {[%clk 0:02:44.6]} 19... Qe8
{[%clk 0:02:23.3]} 20. Ne5 {[%clk 0:02:30.6]} 20... Nd7 {[%clk 0:02:18.1]} 21.
Nc4 {[%clk 0:02:27.1]} 21... Nf6 {[%clk 0:02:09.4]} 22. Bf4 {[%clk 0:02:08.5]}
22... Nh5 {[%clk 0:01:54.8]} 23. Be3 {[%clk 0:02:02.6]} 23... f5 {[%clk
0:01:47.4]} 24. Ne2 {[%clk 0:00:44.9]} 24... Nf6 {[%clk 0:01:43.4]} 25. f3
{[%clk 0:00:36.1]} 25... Rd8 {[%clk 0:00:54.8]} 26. Nf4 {[%clk 0:00:32.6]} 26...
fxe4 {[%clk 0:00:50.2]} 27. fxe4 {[%clk 0:00:32.5]} 27... Qc6 {[%clk 0:00:34.4]}
28. Ne5 {[%clk 0:00:28.3]} 28... Qd6 {[%clk 0:00:34.6]} 29. b3 {[%clk
0:00:23.1]} 29... c5 {[%clk 0:00:21.5]} 30. Nc4 {[%clk 0:00:19.6]} 30... Qc6
{[%clk 0:00:21.6]} 31. Ne5 {[%clk 0:00:16.4]} 31... Qd6 {[%clk 0:00:21.4]} 32.
Kh2 {[%clk 0:00:16.8]} 32... Ba6 {[%clk 0:00:11.8]} 33. Qb2 {[%clk 0:00:14.8]}
33... Nd7 {[%clk 0:00:08.4]} 34. Nxd7 {[%clk 0:00:09.6]} 34... Qxd7 {[%clk
0:00:07.5]} 35. dxc5 {[%clk 0:00:10]} 35... Qxd1 {[%clk 0:00:05.1]} 36. Rxd1
{[%clk 0:00:10.9]} 36... Rxd1 {[%clk 0:00:05]} 37. cxb6 {[%clk 0:00:10.8]} 37...
Bf6 {[%clk 0:00:03.3]} 38. Qf2 {[%clk 0:00:11]} 38... Nd3 {[%clk 0:00:02.1]} 39.
Qf3 {[%clk 0:00:10.1]} 39... Re1 {[%clk 0:00:01.6]} 40. Nxe6 {[%clk 0:00:09.8]}
40... Be5 {[%clk 0:00:01.6]} 41. Qxf8# {[%clk 0:00:09.4]} 1-0

[Event "*** SCC Grand Prix: Titled Tuesday Blitz"]
[Site "Chess.com"]
[Date "2020.06.23"]
[Round "5"]
[White "Radzio1987"]
[Black "vpsetter"]
[Result "1-0"]
[WhiteElo "2857"]
[BlackElo "2612"]
[TimeControl "180+1"]
[EndTime "10:57:00 PDT"]
[Termination "Radzio1987 won on time"]

1. c4 {[%clk 0:03:00.9]} 1... Nf6 {[%clk 0:02:59.3]} 2. Nc3 {[%clk 0:03:00.1]}
2... e6 {[%clk 0:02:59.5]} 3. e4 {[%clk 0:02:59.3]} 3... d5 {[%clk 0:02:59.4]}
4. cxd5 {[%clk 0:02:59.7]} 4... exd5 {[%clk 0:02:59.5]} 5. e5 {[%clk 0:03:00.2]}
5... Ne4 {[%clk 0:02:59.6]} 6. Nf3 {[%clk 0:03:00.4]} 6... c5 {[%clk 0:02:51.6]}
7. Nxe4 {[%clk 0:02:50.7]} 7... dxe4 {[%clk 0:02:50.9]} 8. Qa4+ {[%clk
0:02:50.9]} 8... Bd7 {[%clk 0:02:50.2]} 9. Qxe4 {[%clk 0:02:50.9]} 9... Bc6
{[%clk 0:02:49.4]} 10. Qf4 {[%clk 0:02:51.4]} 10... Be7 {[%clk 0:02:44.9]} 11.
Bc4 {[%clk 0:02:51.1]} 11... O-O {[%clk 0:02:43.2]} 12. O-O {[%clk 0:02:50.7]}
12... b5 {[%clk 0:02:36.6]} 13. Be2 {[%clk 0:02:45.7]} 13... Qd5 {[%clk
0:02:25.7]} 14. d4 {[%clk 0:02:40.6]} 14... c4 {[%clk 0:02:01.7]} 15. Qg4 {[%clk
0:02:27.3]} 15... f5 {[%clk 0:01:27.2]} 16. exf6 {[%clk 0:02:18.8]} 16... Bxf6
{[%clk 0:01:25.9]} 17. Be3 {[%clk 0:02:07]} 17... Bd7 {[%clk 0:01:21.6]} 18. Qg3
{[%clk 0:02:01.6]} 18... Nc6 {[%clk 0:01:21.4]} 19. Rad1 {[%clk 0:02:01.6]}
19... Bf5 {[%clk 0:01:04.7]} 20. Ng5 {[%clk 0:01:40.2]} 20... Rad8 {[%clk
0:00:34.1]} 21. Bf3 {[%clk 0:01:33.9]} 21... Qd7 {[%clk 0:00:33.9]} 22. d5
{[%clk 0:01:25.9]} 22... Ne5 {[%clk 0:00:31.5]} 23. Be4 {[%clk 0:01:17.7]} 23...
Bxg5 {[%clk 0:00:15.7]} 24. Bxg5 {[%clk 0:01:13.9]} 24... Rde8 {[%clk 0:00:10]}
25. Bxf5 {[%clk 0:01:12.5]} 25... Qxf5 {[%clk 0:00:10.1]} 26. d6 {[%clk
0:01:10.1]} 26... Nd3 {[%clk 0:00:10.3]} 27. Be7 {[%clk 0:01:09.3]} 27... Rf7
{[%clk 0:00:09.1]} 28. b3 {[%clk 0:01:07.5]} 28... Qe6 {[%clk 0:00:04.5]} 29.
bxc4 {[%clk 0:01:06.5]} 29... bxc4 {[%clk 0:00:04.9]} 30. h3 {[%clk 0:01:00.4]}
30... Rf5 {[%clk 0:00:05.1]} 31. Rd2 {[%clk 0:00:57.4]} 31... Rd5 {[%clk
0:00:05]} 32. Rb1 {[%clk 0:00:56]} 32... Qf5 {[%clk 0:00:04.8]} 33. Kh2 {[%clk
0:00:52.3]} 33... c3 {[%clk 0:00:05]} 34. Rc2 {[%clk 0:00:40.6]} 34... Nf4
{[%clk 0:00:04.6]} 35. Rbc1 {[%clk 0:00:37.3]} 35... Rd3 {[%clk 0:00:04.7]} 36.
Qg4 {[%clk 0:00:37.5]} 36... Qe5 {[%clk 0:00:04.1]} 37. g3 {[%clk 0:00:31]}
37... Nd5 {[%clk 0:00:03.3]} 38. Rxc3 {[%clk 0:00:31.3]} 38... Nxc3 {[%clk
0:00:02.4]} 39. Qc4+ {[%clk 0:00:31.3]} 39... Qd5 {[%clk 0:00:01.6]} 40. Rxc3
{[%clk 0:00:31.5]} 40... Qxc4 {[%clk 0:00:01.4]} 41. Rxc4 {[%clk 0:00:32.4]}
41... Kf7 {[%clk 0:00:01.9]} 42. Rc7 {[%clk 0:00:32.4]} 1-0

[Event "*** SCC Grand Prix: Titled Tuesday Blitz"]
[Site "Chess.com"]
[Date "2020.06.23"]
[Round "5"]
[White "monalize"]
[Black "dpruess"]
[Result "0-1"]
[WhiteElo "2264"]
[BlackElo "2482"]
[TimeControl "180+1"]
[EndTime "10:57:03 PDT"]
[Termination "dpruess won on time"]

1. e4 {[%clk 0:03:00.5]} 1... c5 {[%clk 0:02:59.8]} 2. Nf3 {[%clk 0:02:59.3]}
2... d6 {[%clk 0:03:00]} 3. d4 {[%clk 0:02:59.3]} 3... cxd4 {[%clk 0:03:00.9]}
4. Qxd4 {[%clk 0:02:59.1]} 4... Nc6 {[%clk 0:02:52.2]} 5. Qe3 {[%clk 0:02:58.7]}
5... Nf6 {[%clk 0:02:49.5]} 6. h3 {[%clk 0:02:58.9]} 6... g6 {[%clk 0:02:44]} 7.
Be2 {[%clk 0:02:58.2]} 7... Bg7 {[%clk 0:02:43.6]} 8. O-O {[%clk 0:02:57.9]}
8... O-O {[%clk 0:02:40.4]} 9. Rd1 {[%clk 0:02:57.2]} 9... Qc7 {[%clk
0:01:54.3]} 10. c4 {[%clk 0:02:56]} 10... Nd7 {[%clk 0:01:34.5]} 11. Nc3 {[%clk
0:02:54.9]} 11... Nde5 {[%clk 0:01:34.4]} 12. Nh2 {[%clk 0:02:49]} 12... Nb4
{[%clk 0:01:27]} 13. Nb5 {[%clk 0:02:26.8]} 13... Qb8 {[%clk 0:01:07.6]} 14. Qb3
{[%clk 0:02:18.9]} 14... Nbc6 {[%clk 0:01:03.7]} 15. Be3 {[%clk 0:02:15.6]}
15... Be6 {[%clk 0:00:56.1]} 16. Rac1 {[%clk 0:02:04.8]} 16... Rc8 {[%clk
0:00:55.5]} 17. Qa4 {[%clk 0:01:36.5]} 17... a6 {[%clk 0:00:47.2]} 18. Na3
{[%clk 0:01:27.2]} 18... b5 {[%clk 0:00:28.9]} 19. cxb5 {[%clk 0:01:26]} 19...
axb5 {[%clk 0:00:29.5]} 20. Qxb5 {[%clk 0:01:26]} 20... Qxb5 {[%clk 0:00:16.3]}
21. Bxb5 {[%clk 0:01:25]} 21... Nb4 {[%clk 0:00:13.3]} 22. f4 {[%clk 0:01:05]}
22... Nd7 {[%clk 0:00:10]} 23. Nc4 {[%clk 0:00:56]} 23... Rxa2 {[%clk
0:00:07.2]} 24. f5 {[%clk 0:00:24.1]} 24... gxf5 {[%clk 0:00:08.1]} 25. Bxd7
{[%clk 0:00:22.8]} 25... Bxd7 {[%clk 0:00:07.8]} 26. Nb6 {[%clk 0:00:22.4]}
26... Rxc1 {[%clk 0:00:06.7]} 27. Rxc1 {[%clk 0:00:21.9]} 27... Be6 {[%clk
0:00:07.1]} 28. exf5 {[%clk 0:00:20.2]} 28... Bxf5 {[%clk 0:00:08]} 29. Nc8
{[%clk 0:00:17.7]} 29... Kf8 {[%clk 0:00:06.7]} 30. Nf3 {[%clk 0:00:16]} 30...
Nd3 {[%clk 0:00:06.9]} 31. Rc2 {[%clk 0:00:15.2]} 31... Rxb2 {[%clk 0:00:07]}
32. Rxb2 {[%clk 0:00:14.4]} 32... Nxb2 {[%clk 0:00:07.9]} 33. Nb6 {[%clk
0:00:13.2]} 33... e6 {[%clk 0:00:07.8]} 34. Nd4 {[%clk 0:00:11.3]} 34... Be4
{[%clk 0:00:07]} 35. g4 {[%clk 0:00:10.1]} 35... Ke7 {[%clk 0:00:07.2]} 36. Nb5
{[%clk 0:00:09.5]} 36... Nd1 {[%clk 0:00:06.9]} 37. Bd2 {[%clk 0:00:09.2]} 37...
Nb2 {[%clk 0:00:05.6]} 38. Kh2 {[%clk 0:00:08]} 38... Be5+ {[%clk 0:00:05.9]}
39. Kg1 {[%clk 0:00:07.4]} 39... Bc6 {[%clk 0:00:06.4]} 40. Nc3 {[%clk
0:00:05.8]} 40... Nd3 {[%clk 0:00:05.9]} 41. Kf1 {[%clk 0:00:05.2]} 41... Nf4
{[%clk 0:00:05.4]} 42. Nc4 {[%clk 0:00:03.8]} 42... Bd4 {[%clk 0:00:04.8]} 0-1

[Event "*** SCC Grand Prix: Titled Tuesday Blitz"]
[Site "Chess.com"]
[Date "2020.06.23"]
[Round "5"]
[White "WonderChampion"]
[Black "Superfelix"]
[Result "0-1"]
[WhiteElo "2037"]
[BlackElo "2469"]
[TimeControl "180+1"]
[EndTime "10:57:03 PDT"]
[Termination "Superfelix won by resignation"]

1. d4 {[%clk 0:03:00.9]} 1... Nf6 {[%clk 0:02:59]} 2. Bg5 {[%clk 0:02:58.4]}
2... Ne4 {[%clk 0:02:58.2]} 3. Bf4 {[%clk 0:02:57.2]} 3... e6 {[%clk 0:02:56]}
4. Nd2 {[%clk 0:02:51.4]} 4... Bd6 {[%clk 0:02:53.8]} 5. Nxe4 {[%clk 0:02:41.6]}
5... Bxf4 {[%clk 0:02:47.3]} 6. e3 {[%clk 0:02:41]} 6... Bh6 {[%clk 0:02:47.1]}
7. Bd3 {[%clk 0:02:38.8]} 7... b6 {[%clk 0:02:45.8]} 8. Nf3 {[%clk 0:02:35]}
8... Bb7 {[%clk 0:02:45]} 9. O-O {[%clk 0:02:34.4]} 9... f5 {[%clk 0:02:43.8]}
10. Ned2 {[%clk 0:02:29.3]} 10... O-O {[%clk 0:02:44.3]} 11. c4 {[%clk
0:02:28.2]} 11... Nc6 {[%clk 0:02:42.2]} 12. a3 {[%clk 0:02:26.5]} 12... a5
{[%clk 0:02:41.6]} 13. b3 {[%clk 0:02:24.6]} 13... Ne7 {[%clk 0:02:41.1]} 14.
Qc2 {[%clk 0:02:21.3]} 14... Qe8 {[%clk 0:02:39.1]} 15. b4 {[%clk 0:02:21.4]}
15... Qh5 {[%clk 0:02:36.9]} 16. Rab1 {[%clk 0:01:50.5]} 16... axb4 {[%clk
0:02:31.6]} 17. axb4 {[%clk 0:01:49]} 17... Ng6 {[%clk 0:02:31.4]} 18. c5 {[%clk
0:01:46.7]} 18... Nh4 {[%clk 0:02:22.2]} 19. Nxh4 {[%clk 0:01:29.3]} 19... Qxh4
{[%clk 0:02:23.1]} 20. e4 {[%clk 0:01:22.3]} 20... Bxd2 {[%clk 0:02:12.5]} 21.
Qxd2 {[%clk 0:01:19.8]} 21... Bxe4 {[%clk 0:02:12.3]} 22. Bxe4 {[%clk 0:01:15]}
22... fxe4 {[%clk 0:02:11.9]} 23. Qe3 {[%clk 0:01:14.3]} 23... Rf5 {[%clk
0:02:01.3]} 24. Rbe1 {[%clk 0:01:12.8]} 24... c6 {[%clk 0:01:31.1]} 25. Qxe4
{[%clk 0:01:10.6]} 25... Qxe4 {[%clk 0:01:19.4]} 26. Rxe4 {[%clk 0:01:09.3]}
26... b5 {[%clk 0:01:19.1]} 27. g3 {[%clk 0:01:00.2]} 27... Ra4 {[%clk 0:01:17]}
28. Rb1 {[%clk 0:00:56.6]} 28... Ra2 {[%clk 0:01:15.5]} 29. f4 {[%clk
0:00:53.1]} 29... Rd5 {[%clk 0:01:14.7]} 30. h3 {[%clk 0:00:39.7]} 30... Rd2
{[%clk 0:01:13.1]} 31. Ra1 {[%clk 0:00:38.4]} 31... R2xd4 {[%clk 0:01:12.1]} 32.
Re2 {[%clk 0:00:27.3]} 32... Rd1+ {[%clk 0:01:09.8]} 33. Rxd1 {[%clk 0:00:25.2]}
33... Rxd1+ {[%clk 0:01:10.7]} 34. Kf2 {[%clk 0:00:25.2]} 34... Rd4 {[%clk
0:01:09.7]} 35. Rb2 {[%clk 0:00:24.6]} 35... Kf7 {[%clk 0:01:08.7]} 36. Ke3
{[%clk 0:00:23.9]} 36... Rd1 {[%clk 0:01:08.4]} 37. Kf3 {[%clk 0:00:20.2]} 37...
Kf6 {[%clk 0:01:07]} 38. g4 {[%clk 0:00:19.3]} 38... g5 {[%clk 0:01:05.8]} 39.
fxg5+ {[%clk 0:00:18.5]} 39... Kxg5 {[%clk 0:01:06.7]} 40. Kg3 {[%clk
0:00:18.9]} 40... Rd3+ {[%clk 0:01:06.7]} 41. Kh2 {[%clk 0:00:18.1]} 41... Kh4
{[%clk 0:01:06.8]} 42. Kg2 {[%clk 0:00:16]} 42... Rg3+ {[%clk 0:01:06.4]} 43.
Kf2 {[%clk 0:00:15.5]} 43... Rxh3 {[%clk 0:01:06.6]} 44. Rb1 {[%clk 0:00:11]}
44... Kxg4 {[%clk 0:01:03.9]} 45. Rg1+ {[%clk 0:00:10.7]} 45... Kf4 {[%clk
0:01:04.3]} 46. Ra1 {[%clk 0:00:11]} 46... Rh2+ {[%clk 0:01:04]} 47. Kg1 {[%clk
0:00:10.3]} 47... Rb2 {[%clk 0:01:04.7]} 48. Rc1 {[%clk 0:00:09.2]} 48... Rxb4
{[%clk 0:01:04.3]} 49. Rf1+ {[%clk 0:00:09.9]} 49... Kg3 {[%clk 0:01:03.9]} 50.
Re1 {[%clk 0:00:09]} 50... Rc4 {[%clk 0:01:03.1]} 51. Re3+ {[%clk 0:00:09.3]}
51... Kf4 {[%clk 0:01:03.5]} 52. Re1 {[%clk 0:00:09.1]} 52... Rxc5 {[%clk
0:01:03.8]} 53. Rf1+ {[%clk 0:00:09.7]} 53... Kg3 {[%clk 0:01:03.6]} 54. Re1
{[%clk 0:00:10.1]} 54... b4 {[%clk 0:01:02]} 55. Re3+ {[%clk 0:00:10.4]} 55...
Kf4 {[%clk 0:01:01.9]} 56. Re1 {[%clk 0:00:11]} 56... b3 {[%clk 0:01:01.8]} 57.
Rf1+ {[%clk 0:00:11.5]} 57... Kg3 {[%clk 0:01:01.6]} 58. Rb1 {[%clk 0:00:11.9]}
58... b2 {[%clk 0:00:59.9]} 59. Re1 {[%clk 0:00:10.2]} 59... Rc1 {[%clk
0:00:59.7]} 60. Kf1 {[%clk 0:00:03.4]} 60... Rxe1+ {[%clk 0:00:58.5]} 61. Kxe1
{[%clk 0:00:04.3]} 61... b1=Q+ {[%clk 0:00:59.2]} 62. Kd2 {[%clk 0:00:04.3]}
62... Qe4 {[%clk 0:00:58.2]} 0-1

[Event "*** SCC Grand Prix: Titled Tuesday Blitz"]
[Site "Chess.com"]
[Date "2020.06.23"]
[Round "5"]
[White "adriangschnitzer"]
[Black "kuban1991"]
[Result "0-1"]
[WhiteElo "2478"]
[BlackElo "2727"]
[TimeControl "180+1"]
[EndTime "10:57:05 PDT"]
[Termination "kuban1991 won on time"]

1. e4 {[%clk 0:03:00.9]} 1... e6 {[%clk 0:02:52.3]} 2. d4 {[%clk 0:02:59.3]}
2... d5 {[%clk 0:02:52.8]} 3. Nd2 {[%clk 0:02:57.6]} 3... c5 {[%clk 0:02:52.4]}
4. exd5 {[%clk 0:02:57.1]} 4... exd5 {[%clk 0:02:53.3]} 5. Ngf3 {[%clk
0:02:57.3]} 5... Nc6 {[%clk 0:02:53.9]} 6. Bb5 {[%clk 0:02:56.9]} 6... Bd6
{[%clk 0:02:54]} 7. dxc5 {[%clk 0:02:56]} 7... Bxc5 {[%clk 0:02:54.9]} 8. O-O
{[%clk 0:02:56]} 8... Ne7 {[%clk 0:02:54.6]} 9. Nb3 {[%clk 0:02:55.9]} 9... Bb6
{[%clk 0:02:55.1]} 10. Re1 {[%clk 0:02:45.4]} 10... O-O {[%clk 0:02:55]} 11. Bg5
{[%clk 0:02:45.7]} 11... Qd6 {[%clk 0:02:54.5]} 12. Nbd4 {[%clk 0:02:36.7]}
12... Bg4 {[%clk 0:02:42.7]} 13. Nxc6 {[%clk 0:02:16.8]} 13... Nxc6 {[%clk
0:02:39.8]} 14. h3 {[%clk 0:01:54.9]} 14... Bh5 {[%clk 0:02:25]} 15. Bxc6 {[%clk
0:01:23.9]} 15... Qxc6 {[%clk 0:02:23.4]} 16. Ne5 {[%clk 0:01:17]} 16... Bxd1
{[%clk 0:02:14.9]} 17. Nxc6 {[%clk 0:01:16.3]} 17... bxc6 {[%clk 0:02:09.2]} 18.
Raxd1 {[%clk 0:01:14.4]} 18... Rfe8 {[%clk 0:02:08.1]} 19. Kf1 {[%clk
0:01:10.7]} 19... f6 {[%clk 0:02:07.2]} 20. Bd2 {[%clk 0:01:04.2]} 20... Kf7
{[%clk 0:02:06.3]} 21. Rxe8 {[%clk 0:01:03.3]} 21... Kxe8 {[%clk 0:02:07.1]} 22.
Re1+ {[%clk 0:01:04.1]} 22... Kd7 {[%clk 0:02:07.6]} 23. b3 {[%clk 0:01:02.9]}
23... c5 {[%clk 0:01:46.9]} 24. c4 {[%clk 0:00:58.5]} 24... d4 {[%clk
0:01:46.5]} 25. Ke2 {[%clk 0:00:57.8]} 25... a5 {[%clk 0:01:41]} 26. a4 {[%clk
0:00:49.8]} 26... Bc7 {[%clk 0:01:36.6]} 27. Kd3 {[%clk 0:00:48.5]} 27... Rb8
{[%clk 0:01:36.3]} 28. Rb1 {[%clk 0:00:47.5]} 28... h5 {[%clk 0:01:32.7]} 29.
Kc2 {[%clk 0:00:30]} 29... g5 {[%clk 0:01:21.6]} 30. g4 {[%clk 0:00:27.6]} 30...
hxg4 {[%clk 0:01:21.5]} 31. hxg4 {[%clk 0:00:28.5]} 31... Rh8 {[%clk 0:01:20.7]}
32. Rf1 {[%clk 0:00:24.5]} 32... Rh2 {[%clk 0:01:15.5]} 33. Kd3 {[%clk
0:00:20.2]} 33... Rh3+ {[%clk 0:01:02.9]} 34. f3 {[%clk 0:00:10.9]} 34... Rh2
{[%clk 0:01:03]} 35. f4 {[%clk 0:00:09.2]} 35... Rh3+ {[%clk 0:00:38.9]} 36. Kc2
{[%clk 0:00:06.1]} 36... gxf4 {[%clk 0:00:37.7]} 37. Bxf4 {[%clk 0:00:07]} 37...
Be5 {[%clk 0:00:35]} 38. Bxe5 {[%clk 0:00:05.7]} 38... fxe5 {[%clk 0:00:35.9]}
39. g5 {[%clk 0:00:03.2]} 39... Rg3 {[%clk 0:00:34.9]} 40. Rf5 {[%clk
0:00:03.6]} 40... Ke6 {[%clk 0:00:29.8]} 41. Rf6+ {[%clk 0:00:02.8]} 41... Ke7
{[%clk 0:00:30.3]} 42. Rf5 {[%clk 0:00:03.7]} 42... Kd6 {[%clk 0:00:24]} 43.
Rf6+ {[%clk 0:00:02.9]} 43... Kd7 {[%clk 0:00:24.5]} 44. Rf5 {[%clk 0:00:03.8]}
44... e4 {[%clk 0:00:25]} 0-1